bitfinex/quotes_SOLUSD_20240708
["timestamp","ask_amount","ask_price","bid_price","bid_amount"]
[1720448506152,1.78071916,140.44,140.33,216.2038]
[1720448506453,38.1,140.4,140.3,100.0]
[1720448506640,1.78125613,140.39,140.3,100.0]
[1720448506846,38.1,140.36,140.3,100.0]
[1720448507037,21.78140746,140.35,140.28,100.0]
[1720448507646,21.78140746,140.35,140.27,115.7706]
[1720448507850,21.78140746,140.35,140.29,100.0]
[1720448508046,20.0,140.35,140.31,100.0]
[1720448508239,20.0,140.35,140.32,0.52814056]
[1720448508557,21.78127802,140.35,140.28,100.0]
[1720448509052,21.78127802,140.35,140.26,100.0]
[1720448509552,38.1,140.32,140.26,100.0]
[1720448509729,20.0,140.31,140.28,100.0]
[1720448509930,21.78179514,140.31,140.26,100.0]
[1720448510147,20.0,140.31,140.26,100.0]
[1720448510373,1.78193556,140.3,140.26,100.0]
[1720448510575,1.78202903,140.33,140.26,100.0]
[1720448510773,1.78202892,140.32,140.26,100.0]
[1720448510954,1.78202892,140.32,140.24,100.0]
[1720448511149,1.78202892,140.32,140.26,100.0]
[1720448511650,1.78193792,140.33,140.29,100.0]
[1720448512269,1.78193792,140.33,140.27,100.0]
[1720448512569,1.78170932,140.32,140.28,100.0]
[1720448512777,1.78170932,140.32,140.3,0.02]
[1720448513357,1.78202919,140.33,140.3,0.02]
[1720448513572,1.7820288,140.32,140.3,0.02]
[1720448514266,1.78196312,140.33,140.3,0.02]
[1720448514579,6.5655,140.36,140.3,100.02]
[1720448514880,1.78151986,140.35,140.3,0.02]
[1720448515376,8.34711652,140.36,140.32,100.0]
[1720448515587,38.1,140.37,140.33,100.43039207]
[1720448515958,1.78161652,140.41,140.36,100.0]
[1720448516158,38.1,140.42,140.37,0.43026942]
[1720448516354,38.1,140.42,140.37,100.0]
[1720448516551,38.1,140.42,140.38,0.52658402]
[1720448516975,38.1,140.42,140.39,100.0]
[1720448517182,1.78041691,140.41,140.36,100.0]
[1720448517354,1.78041691,140.41,140.37,0.52675895]
[1720448517557,21.78041691,140.41,140.37,0.52675895]
[1720448517763,38.1,140.42,140.37,0.52675895]
[1720448517992,1.78071341,140.41,140.37,0.52675895]
[1720448518180,1.78071341,140.41,140.34,100.0]
[1720448519356,1.78071341,140.41,140.36,100.0]
[1720448519770,1.78071341,140.41,140.34,100.0]
[1720448520598,38.1,140.42,140.36,100.0]
[1720448520899,38.1,140.42,140.38,100.0]
[1720448521063,38.1,140.42,140.39,0.52609708]
[1720448521265,1.78045177,140.41,140.36,100.0]
[1720448521666,1.78045177,140.41,140.34,100.0]
[1720448522391,21.78045177,140.41,140.36,100.0]
[1720448522688,20.0,140.41,140.38,100.0]
[1720448522988,6.0683,140.44,140.4,100.0]
[1720448523167,45.79015645,140.45,140.41,0.52550303]
[1720448523377,45.79015645,140.45,140.38,200.0]
[1720448523671,45.79015645,140.45,140.38,100.0]
[1720448523873,38.1,140.45,140.4,100.0]
[1720448524075,38.1,140.45,140.38,100.0]
[1720448524076,1.78015977,140.44,140.38,100.0]
[1720448524262,1.78015977,140.44,140.36,100.0]
[1720448524687,1.78015977,140.44,140.38,100.0]
[1720448525064,21.78015977,140.44,140.38,100.0]
[1720448525583,21.78015977,140.44,140.35,0.17]
[1720448525584,38.1,140.41,140.35,100.0]
[1720448525893,21.78085001,140.4,140.35,100.0]
[1720448526199,1.78088359,140.39,140.35,100.0]
[1720448526369,21.78084923,140.4,140.35,100.0]
[1720448526567,21.78084923,140.4,140.36,0.5270544]
[1720448526785,20.0,140.4,140.37,100.0]
[1720448527085,1.78080533,140.44,140.39,100.0]
[1720448527602,38.1,140.45,140.41,100.0]
[1720448527777,5.89452174,140.46,140.42,0.52533535]
[1720448528096,8.00683237,140.47,140.42,0.52533535]
[1720448528571,38.1,140.49,140.44,100.0]
[1720448528773,38.1,140.49,140.46,100.0]
[1720448528994,38.1,140.49,140.47,0.52369805]
[1720448529292,10.74283011,140.53,140.47,0.52369805]
[1720448529293,1.7798611,140.53,140.48,100.0]
[1720448529505,1.7798611,140.53,140.49,0.52308497]
[1720448529680,1.77923413,140.54,140.49,0.52308497]
[1720448530195,1.77923413,140.54,140.46,100.0]
[1720448530362,38.1,140.52,140.48,100.0]
[1720448530565,5.75805085,140.55,140.5,100.0]
[1720448530862,38.1,140.56,140.47,115.5038]
[1720448530863,38.1,140.56,140.52,100.0]
[1720448531187,1.77862333,140.55,140.49,100.0]
[1720448531400,1.77862333,140.55,140.51,100.0]
[1720448531563,8.89382333,140.55,140.46,100.0]
[1720448531759,1.77862333,140.55,140.47,0.52345445]
[1720448532181,6.6412,140.54,140.43,100.0]
[1720448532371,45.218,140.49,140.4,100.0]
[1720448532583,38.1,140.45,140.38,100.0]
[1720448532776,21.78040602,140.44,140.36,100.0]
[1720448532974,21.78040602,140.44,140.38,0.02]
[1720448533368,38.1,140.41,140.38,0.02]
[1720448533570,1.78080431,140.4,140.38,0.02]
[1720448533868,20.0,140.4,140.38,0.02]
[1720448535473,21.78062008,140.4,140.38,0.02]
[1720448535669,1.78062008,140.39,140.38,0.02]
[1720448536810,1.78062008,140.39,140.3,27.6949]
[1720448536811,1.78062008,140.39,140.3,100.02]
[1720448536967,38.1,140.37,140.33,100.0]
[1720448537168,21.78113808,140.36,140.31,100.0]
[1720448537795,20.0,140.36,140.33,100.0]
[1720448538473,20.0,140.36,140.3,0.02]
[1720448538474,1.78115911,140.35,140.3,0.02]
[1720448538893,21.7815138,140.36,140.31,100.0]
[1720448539106,21.7813055,140.36,140.3,100.02]
[1720448539285,21.78143227,140.36,140.3,100.02]
[1720448539475,21.78143227,140.36,140.31,100.52830684]
[1720448539806,1.78136846,140.35,140.3,0.02]
[1720448540170,1.7815893,140.41,140.37,100.0]
[1720448540379,1.7815893,140.41,140.33,16.0187]
[1720448540380,6.6658,140.43,140.33,116.0187]
[1720448540681,38.1,140.4,140.33,116.0187]
[1720448540875,1.7810123,140.39,140.31,100.0]
[1720448541302,38.1,140.36,140.3,0.02]
[1720448541475,1.78154779,140.35,140.3,0.02]
[1720448541675,21.78154779,140.35,140.3,0.02]
[1720448542796,6.3771,140.34,140.3,0.02]
[1720448542983,21.78192742,140.33,140.3,0.02]
[1720448543192,21.78188767,140.33,140.3,0.02]
[1720448543609,20.0,140.33,140.3,0.02]
[1720448544115,256.1,140.41,140.3,0.02]
[1720448544116,7.79501427,140.38,140.32,100.0]
[1720448544291,6.0133,140.38,140.32,100.0]
[1720448544488,1.78116952,140.37,140.32,100.0]
[1720448544691,38.1,140.36,140.3,0.02]
[1720448544885,1.78153833,140.35,140.3,0.02]
[1720448545507,1.78153833,140.35,140.3,0.54880178]
[1720448545716,21.78153833,140.35,140.3,0.54880178]
[1720448546498,21.78153833,140.35,140.3,0.02]
[1720448547835,38.1,140.32,140.3,0.02]
[1720448548118,20.0,140.31,140.3,0.02]
[1720448548915,6.0133,140.38,140.32,100.0]
[1720448549215,6.0133,140.38,140.34,100.0]
[1720448549414,44.7472,140.43,140.37,100.0]
[1720448549586,1.78056974,140.42,140.37,100.0]
[1720448549788,44.7472,140.43,140.37,200.0]
[1720448549990,1.78056312,140.47,140.39,100.0]
[1720448550215,1.78056312,140.47,140.41,100.0]
[1720448550415,44.3579,140.49,140.43,100.0]
[1720448550615,1.77989087,140.48,140.43,100.0]
[1720448551020,1.77978285,140.48,140.44,0.02]
[1720448551215,1.77978285,140.48,140.43,100.0]
[1720448551518,1.77978285,140.48,140.42,0.02]
[1720448552021,21.77978285,140.48,140.42,0.54484601]
[1720448552192,21.77978285,140.48,140.44,100.0]
[1720448552391,20.0,140.48,140.44,100.0]
[1720448552910,20.0,140.48,140.43,0.02]
[1720448552911,21.77975979,140.48,140.43,0.02]
[1720448555117,21.77975979,140.48,140.4,100.0]
[1720448555118,21.77975979,140.48,140.4,0.02]
[1720448555319,38.1,140.45,140.4,0.02]
[1720448555517,21.78051391,140.44,140.4,0.02]
[1720448555720,21.78051391,140.44,140.38,100.02]
[1720448556023,21.78051391,140.44,140.39,0.02]
[1720448556216,21.78051391,140.44,140.38,100.02]
[1720448556426,21.78051391,140.44,140.38,0.02]
[1720448556803,21.78051391,140.44,140.38,100.02]
[1720448557110,21.78051391,140.44,140.38,0.02]
[1720448557928,21.78051391,140.44,140.38,100.02]
[1720448558316,21.78051391,140.44,140.38,0.02]
[1720448558521,38.1,140.41,140.38,0.02]
[1720448558700,20.0,140.4,140.39,100.0]
[1720448559632,20.0,140.4,140.37,100.54629118]
[1720448560111,20.0,140.4,140.37,100.52629118]
[1720448560548,38.1,140.45,140.41,100.0]
[1720448560824,1.78061685,140.48,140.4,0.52558138]
[1720448560998,1.78061685,140.48,140.41,0.02]
[1720448562030,1.78061685,140.48,140.39,100.0]
[1720448562239,21.78061685,140.48,140.39,100.0]
[1720448562398,21.78061685,140.48,140.41,100.0]
[1720448562595,1.78061685,140.48,140.41,100.0]
[1720448563122,1.78061685,140.48,140.4,0.02]
[1720448563319,1.78061685,140.48,140.41,100.0]
[1720448563526,1.78061685,140.48,140.4,0.02]
[1720448564021,21.78061685,140.48,140.4,0.02]
[1720448564234,21.78061685,140.48,140.41,100.0]
[1720448564724,1.78061685,140.48,140.43,100.0]
[1720448565029,1.78061685,140.48,140.41,100.0]
[1720448565204,1.78061685,140.48,140.43,0.02]
[1720448565543,1.78061685,140.48,140.41,100.02]
[1720448565826,1.78061685,140.48,140.42,0.02]
[1720448566005,21.78061685,140.48,140.41,0.02]
[1720448566807,21.78061685,140.48,140.41,100.02]
[1720448567927,21.78061685,140.48,140.43,100.0]
[1720448568224,21.78061685,140.48,140.41,100.02]
[1720448568436,21.78061685,140.48,140.42,0.02]
[1720448568599,21.78061685,140.48,140.41,100.02]
[1720448568800,21.78061685,140.48,140.41,0.02]
[1720448569613,38.1,140.44,140.41,0.02]
[1720448569821,20.0,140.43,140.41,0.02]
[1720448570032,1.78031573,140.42,140.41,0.02]
[1720448570241,20.0,140.43,140.4,100.02]
[1720448570741,20.0,140.43,140.4,100.0]
[1720448571341,20.0,140.43,140.39,0.02]
[1720448571556,20.0,140.43,140.4,100.0]
[1720448572142,20.0,140.43,140.39,0.02]
[1720448572822,1.78049072,140.42,140.39,0.02]
[1720448573227,1.78049072,140.42,140.37,0.02]
[1720448574220,1.78049072,140.42,140.36,100.0]
[1720448574435,1.78049072,140.42,140.37,0.02]
[1720448576244,1.78049072,140.42,140.35,0.02]
[1720448576444,1.78049072,140.42,140.34,200.0]
[1720448576445,6.406,140.41,140.37,0.02]
[1720448576629,20.0,140.4,140.35,0.02]
[1720448576949,1.78098423,140.39,140.35,0.02]
[1720448578557,1.78098423,140.39,140.33,100.02]
[1720448578955,1.78098423,140.39,140.35,100.0]
[1720448579154,1.78098423,140.39,140.34,0.02]
[1720448579457,1.78098423,140.39,140.33,100.02]
[1720448579754,1.78098423,140.39,140.35,0.02]
[1720448581382,1.78098423,140.39,140.35,100.02]
[1720448581660,38.1,140.4,140.35,200.02]
[1720448581856,6.406,140.41,140.37,100.0]
[1720448582057,1.78096985,140.43,140.37,100.0]
[1720448582268,1.78060453,140.42,140.36,0.02]
[1720448582461,1.78060453,140.42,140.38,0.02]
[1720448582673,39.88064684,140.44,140.39,100.0]
[1720448582849,39.88064684,140.44,140.37,100.0]
[1720448583164,39.88064684,140.44,140.39,100.0]
[1720448583165,38.1,140.44,140.39,100.0]
[1720448583748,12.4341144,140.45,140.41,100.0]
[1720448584155,6.6528,140.45,140.41,100.0]
[1720448584567,6.6528,140.45,140.41,200.0]
[1720448585860,1.78058105,140.48,140.41,200.0]
[1720448586059,7.64995351,140.48,140.41,200.0]
[1720448586361,20.0,140.47,140.41,200.0]
[1720448586559,21.78058105,140.48,140.41,200.0]
[1720448586960,1.78058105,140.48,140.43,200.0]
[1720448587181,38.1,140.5,140.43,200.0]
[1720448587363,1.77962909,140.49,140.43,200.0]
[1720448587568,1.77962909,140.49,140.44,0.02]
[1720448588371,51.34072568,140.5,140.46,100.0]
[1720448588857,13.24072568,140.5,140.46,100.0]
[1720448589065,13.24072568,140.5,140.48,100.0]
[1720448589274,13.24072568,140.5,140.47,100.0]
[1720448589679,21.77934302,140.49,140.46,0.02]
[1720448589963,21.77934302,140.49,140.43,100.0]
[1720448590356,21.77934302,140.49,140.44,0.02]
[1720448590563,38.1,140.47,140.44,0.02]
[1720448590880,38.1,140.47,140.41,100.0]
[1720448590881,21.7801514,140.46,140.41,100.0]
[1720448591067,21.7801514,140.46,140.38,100.0]
[1720448591068,1.78027422,140.45,140.38,100.0]
[1720448591270,1.78027422,140.45,140.41,0.02]
[1720448591775,38.1,140.43,140.39,0.02]
[1720448592091,20.0,140.42,140.39,0.02]
[1720448592497,20.0,140.42,140.41,100.0]
[1720448593095,20.0,140.42,140.39,100.02]
[1720448593295,5.63786828,140.46,140.39,0.02]
[1720448593493,38.1,140.44,140.39,0.02]
[1720448593789,21.78045231,140.43,140.4,0.02]
[1720448594192,1.78045186,140.42,140.38,0.02]
[1720448594565,38.1,140.4,140.34,100.0]
[1720448594894,21.78096339,140.39,140.34,100.0]
[1720448595069,21.78096339,140.39,140.38,0.02]
[1720448595267,21.78096339,140.39,140.32,100.0]
[1720448595683,21.78096339,140.39,140.32,100.02]
[1720448595965,21.78096339,140.39,140.32,0.02]
[1720448596295,38.1,140.36,140.33,100.0]
[1720448596594,20.0,140.35,140.33,100.0]
[1720448596773,20.0,140.35,140.32,0.02]
[1720448597298,20.0,140.35,140.32,0.5283364]
[1720448598682,20.0,140.35,140.33,100.0]
[1720448599161,20.0,140.35,140.32,0.5283364]
[1720448599490,20.0,140.35,140.31,100.54834697]
[1720448599703,21.78138848,140.35,140.31,0.02]
[1720448599894,21.78138848,140.35,140.3,0.02]
[1720448600069,21.78138848,140.35,140.25,15.5919]
[1720448600273,21.78138848,140.35,140.29,0.02]
[1720448600773,21.78138848,140.35,140.27,100.02]
[1720448601597,28.90648848,140.35,140.27,100.02]
[1720448601895,38.1,140.32,140.27,0.02]
[1720448602100,21.78213589,140.31,140.27,0.02]
[1720448602998,21.78213589,140.31,140.27,100.02]
[1720448603173,21.78213589,140.31,140.27,0.02]
[1720448603570,1.78202104,140.34,140.29,100.0]
[1720448603867,22.0651,140.36,140.27,200.02]
[1720448603868,1.78156832,140.33,140.27,200.02]
[1720448604074,1.78171281,140.35,140.29,100.0]
[1720448604583,1.78171281,140.35,140.27,100.02]
[1720448604783,1.78171281,140.35,140.27,200.02]
[1720448604987,21.78171281,140.35,140.27,100.02]
[1720448605191,21.78171281,140.35,140.27,0.02]
[1720448605685,21.78171281,140.35,140.27,100.02]
[1720448606798,21.78171281,140.35,140.28,100.0]
[1720448607395,20.0,140.35,140.31,100.0]
[1720448607596,44.5419,140.36,140.31,100.0]
[1720448607984,5.62984441,140.37,140.33,100.0]
[1720448608187,39.88137904,140.39,140.33,200.0]
[1720448608578,38.1,140.39,140.35,100.0]
[1720448608908,1.78085696,140.38,140.33,200.0]
[1720448609205,21.78085696,140.38,140.34,0.49282111]
[1720448609573,21.78085696,140.38,140.31,100.0]
[1720448609776,21.78085696,140.38,140.29,100.0]
[1720448610085,38.1,140.35,140.27,100.02]
[1720448610277,21.78178032,140.34,140.27,100.02]
[1720448611294,21.78178538,140.34,140.29,100.0]
[1720448611500,21.78154197,140.34,140.29,100.0]
[1720448614303,21.78154197,140.34,140.27,0.02]
[1720448614304,21.78154197,140.34,140.27,100.02]
[1720448614489,6.5994,140.33,140.27,100.02]
[1720448614689,21.7819859,140.32,140.27,0.02]
[1720448615213,21.7819859,140.32,140.28,100.0]
[1720448615419,21.7819859,140.32,140.27,100.02]
[1720448615918,21.7819859,140.32,140.27,0.02]
[1720448616115,20.0,140.32,140.28,100.0]
[1720448616523,21.78179513,140.32,140.27,100.02]
[1720448616705,20.0,140.32,140.28,100.0]
[1720448617099,21.7817877,140.32,140.28,100.0]
[1720448617303,21.7817877,140.32,140.27,0.02]
[1720448618202,38.1,140.31,140.24,100.0]
[1720448618410,20.0,140.3,140.26,100.0]
[1720448619320,1.78201445,140.29,140.24,100.0]
[1720448620715,21.78238313,140.3,140.24,100.0]
[1720448620899,1.78238313,140.29,140.24,100.0]
[1720448621097,21.78220221,140.3,140.24,100.0]
[1720448621325,38.1,140.31,140.27,100.0]
[1720448621529,1.78201055,140.3,140.26,0.52983874]
[1720448621831,38.1,140.31,140.27,100.0]
[1720448622004,38.1,140.31,140.27,200.0]
[1720448622207,38.1,140.31,140.27,100.0]
[1720448623344,38.1,140.31,140.25,200.0]
[1720448623620,38.1,140.31,140.27,100.0]
[1720448624000,20.0,140.3,140.29,100.0]
[1720448624205,8.38145346,140.33,140.29,100.0]
[1720448624409,1.78169129,140.32,140.26,100.0]
[1720448625634,21.78169129,140.32,140.26,100.0]
[1720448625806,1.78169129,140.32,140.26,100.0]
[1720448626011,21.78169129,140.32,140.26,100.0]
[1720448627422,21.78169129,140.32,140.27,0.52990228]
[1720448627601,21.78169129,140.32,140.26,100.0]
[1720448627797,21.78169129,140.32,140.26,200.0]
[1720448628332,21.78169129,140.32,140.26,100.0]
[1720448628822,21.78169129,140.32,140.24,100.0]
[1720448629513,21.78169129,140.32,140.26,100.0]
[1720448629901,21.78169129,140.32,140.28,100.0]
[1720448629902,20.0,140.32,140.28,100.0]
[1720448630226,1.78161996,140.32,140.27,0.52890131]
[1720448630430,1.78161996,140.32,140.26,200.0]
[1720448631020,8.38119266,140.33,140.28,200.0]
[1720448631241,8.38119266,140.33,140.25,0.17]
[1720448631242,21.78172849,140.32,140.26,100.0]
[1720448632834,21.78172849,140.32,140.28,100.0]
[1720448632835,20.0,140.32,140.28,100.0]
[1720448633041,20.0,140.32,140.3,100.0]
[1720448633527,20.0,140.33,140.3,100.0]
[1720448634747,34.21,140.31,140.3,100.0]
[1720448634952,54.21,140.31,140.3,100.0]
[1720448635114,54.21,140.31,140.26,115.3802]
[1720448635310,20.0,140.3,140.26,115.3802]
[1720448635543,20.0,140.3,140.28,100.0]
[1720448636048,20.0,140.3,140.28,200.0]
[1720448636339,54.21,140.3,140.28,200.0]
[1720448636742,54.21,140.3,140.29,0.52920597]
[1720448636933,54.21,140.3,140.23,100.0]
[1720448637235,34.21,140.26,140.23,100.0]
[1720448637412,20.0,140.25,140.23,100.0]
[1720448637612,20.0,140.25,140.21,100.2]
[1720448639346,20.0,140.25,140.24,100.0]
[1720448639717,20.0,140.25,140.24,100.17]
[1720448640036,34.21,140.26,140.24,100.34]
[1720448640234,1.7824209,140.33,140.28,100.0]
[1720448640235,34.21,140.29,140.28,100.0]
[1720448640409,12.38100194,140.34,140.28,100.0]
[1720448640610,6.4157,140.38,140.33,100.0]
[1720448641036,34.21,140.35,140.29,100.0]
[1720448641242,34.21,140.35,140.3,0.52886286]
[1720448641243,34.21,140.31,140.3,0.52886286]
[1720448641541,12.17183814,140.38,140.31,100.0]
[1720448641751,34.21,140.33,140.3,0.52825036]
[1720448642216,20.0,140.32,140.3,0.52825036]
[1720448642837,38.49,140.35,140.3,0.52825036]
[1720448643062,21.78161048,140.34,140.27,200.17]
[1720448643343,21.78161048,140.34,140.27,100.0]
[1720448643553,6.2885,140.3,140.21,200.2]
[1720448643733,38.49,140.27,140.23,100.0]
[1720448643926,20.0,140.26,140.25,100.0]
[1720448644330,20.0,140.26,140.25,200.0]
[1720448644551,20.0,140.26,140.23,100.0]
[1720448644856,21.78228873,140.29,140.23,100.0]
[1720448646041,21.78228873,140.29,140.24,0.53057305]
[1720448646747,21.78228873,140.29,140.23,100.0]
[1720448647065,21.78228873,140.29,140.21,100.2]
[1720448648460,38.49,140.27,140.21,100.2]
[1720448648662,21.78262461,140.26,140.21,0.2]
[1720448648877,20.0,140.26,140.21,100.2]
[1720448649665,20.0,140.26,140.22,100.0]
[1720448650033,21.78250218,140.26,140.21,100.2]
[1720448650350,21.78250218,140.26,140.21,0.2]
[1720448651276,21.78250218,140.26,140.21,100.2]
[1720448651741,20.0,140.26,140.21,100.2]
[1720448651947,20.0,140.26,140.22,0.53102757]
[1720448652331,21.78252971,140.26,140.21,100.2]
[1720448653362,21.78252971,140.26,140.21,0.2]
[1720448654540,38.49,140.23,140.19,0.04226711]
[1720448654740,21.78312158,140.22,140.19,0.04226711]
[1720448654956,20.0,140.22,140.19,100.04226711]
[1720448655663,20.0,140.22,140.21,100.0]
[1720448655865,6.6402,140.25,140.21,200.0]
[1720448656172,6.6402,140.25,140.19,0.04226711]
[1720448656173,6.6402,140.25,140.19,100.04226711]
[1720448656368,1.78279044,140.24,140.19,100.04226711]
[1720448656741,38.49,140.2,140.16,100.0]
[1720448657252,1.78330924,140.19,140.14,100.0]
[1720448657757,6.1842,140.18,140.13,100.0]
[1720448657972,20.0,140.17,140.13,200.0]
[1720448658341,21.7836501,140.17,140.13,200.0]
[1720448658574,21.78366337,140.17,140.11,200.2]
[1720448658748,38.49,140.16,140.11,0.2]
[1720448658955,21.7841294,140.15,140.11,0.2]
[1720448659146,20.0,140.15,140.11,0.2]
[1720448659463,20.0,140.15,140.12,100.0]
[1720448659662,20.0,140.15,140.11,100.2]
[1720448660047,20.0,140.15,140.13,100.0]
[1720448660239,20.0,140.15,140.11,200.2]
[1720448660443,20.0,140.15,140.12,0.45132751]
[1720448660657,21.78384063,140.15,140.11,100.2]
[1720448660870,20.0,140.15,140.12,100.0]
[1720448661067,21.78387369,140.15,140.11,0.2]
[1720448661245,1.78406955,140.14,140.11,0.2]
[1720448661643,21.78408068,140.15,140.11,0.2]
[1720448661868,1.78408068,140.15,140.11,0.2]
[1720448662068,13.88191855,140.28,140.2,100.0]
[1720448662274,38.49,140.25,140.22,100.0]
[1720448662566,38.49,140.25,140.2,100.0]
[1720448663068,38.49,140.25,140.18,100.0]
[1720448663446,38.49,140.25,140.16,100.0]
[1720448663750,38.49,140.21,140.16,100.0]
[1720448663947,38.49,140.21,140.18,100.0]
[1720448664347,38.49,140.21,140.18,200.0]
[1720448664677,38.49,140.21,140.16,100.0]
[1720448664870,1.78302676,140.27,140.22,100.0]
[1720448665081,1.78257291,140.26,140.22,100.0]
[1720448665376,1.78272188,140.27,140.23,1.4261775]
[1720448665974,50.71011454,140.28,140.23,1.4261775]
[1720448665975,52.49267248,140.28,140.23,1.4261775]
[1720448666467,20.0,140.27,140.23,1.4261775]
[1720448666772,20.0,140.27,140.24,100.0]
[1720448666974,20.0,140.27,140.22,100.0]
[1720448666975,50.71011454,140.28,140.25,1.42582023]
[1720448667151,1.78227788,140.27,140.22,100.0]
[1720448667470,50.71011454,140.28,140.22,100.0]
[1720448667677,1.7824735,140.27,140.23,1.42495324]
[1720448668069,38.49,140.24,140.17,100.0]
[1720448668261,21.78300703,140.23,140.18,1.42640563]
[1720448668452,21.78300703,140.23,140.15,101.42640584]
[1720448668646,20.0,140.23,140.17,100.0]
[1720448668960,20.0,140.23,140.2,100.0]
[1720448669147,20.0,140.23,140.22,100.0]
[1720448669486,20.0,140.23,140.22,200.0]
[1720448669650,20.0,140.23,140.22,100.0]
[1720448669973,52.49265595,140.28,140.22,100.17]
[1720448670159,8.27184141,140.32,140.24,100.0]
[1720448670354,8.27184141,140.32,140.25,1.3726711]
[1720448670594,38.49,140.31,140.25,1.3726711]
[1720448670772,1.78216427,140.3,140.25,1.3726711]
[1720448671154,1.78216421,140.29,140.25,1.3726711]
[1720448671509,1.78220363,140.3,140.22,100.17]
[1720448671661,38.49,140.31,140.22,100.17]
[1720448671662,1.78228908,140.29,140.22,100.17]
[1720448671974,1.78228908,140.29,140.24,100.0]
[1720448672150,38.49,140.31,140.23,100.0]
[1720448672344,38.49,140.31,140.24,0.17]
[1720448672345,20.0,140.3,140.24,0.17]
[1720448672786,20.0,140.3,140.26,100.0]
[1720448672990,38.49,140.31,140.26,100.0]
[1720448673156,7.49217578,140.39,140.35,100.0]
[1720448673361,6.6259,140.4,140.36,0.81005785]
[1720448674584,6.6259,140.4,140.36,1.42464892]
[1720448674786,6.3094,140.47,140.39,100.0]
[1720448675001,38.49,140.45,140.4,1.42411225]
[1720448675302,1.78023888,140.46,140.4,1.42411225]
[1720448675607,1.78023723,140.46,140.41,100.0]
[1720448675789,1.78008765,140.45,140.41,100.0]
[1720448675972,1.78022616,140.46,140.41,100.0]
[1720448676174,1.78022315,140.45,140.41,100.0]
[1720448677300,1.78022315,140.45,140.39,100.0]
[1720448677497,1.78022315,140.45,140.38,101.42427182]
[1720448677808,1.78022315,140.45,140.39,1.42406893]
[1720448678188,1.78022315,140.45,140.38,101.42441339]
[1720448679585,1.78022315,140.45,140.4,100.0]
[1720448679785,1.78022315,140.45,140.4,101.42421048]
[1720448680205,1.78022315,140.45,140.4,1.42421048]
[1720448680408,1.78022315,140.45,140.38,101.42426578]
[1720448681109,7.46119062,140.45,140.38,101.42426578]
[1720448681285,20.0,140.44,140.38,101.42426578]
[1720448681491,1.78050936,140.43,140.38,101.42426578]
[1720448681814,1.78056754,140.42,140.38,101.42426578]
[1720448682190,21.78056485,140.44,140.38,101.42426578]
[1720448682508,21.78056485,140.44,140.4,100.0]
[1720448683095,21.78056485,140.44,140.4,1.42406289]
[1720448683314,21.78056485,140.44,140.38,100.0]
[1720448684306,21.78056485,140.44,140.36,100.0]
[1720448684619,21.78056485,140.44,140.37,1.41940629]
[1720448684919,21.78056485,140.44,140.36,100.0]
[1720448685219,21.78056485,140.44,140.39,100.0]
[1720448685726,7.46139136,140.45,140.39,200.0]
[1720448686406,38.49,140.41,140.34,100.0]